[Event "Titled Tuesday Blitz March 28 Early 2023"]
[White "Delorme, Alban"]
[Black "Cherniaiev, Tykhon"]
[WhiteFideId "623636"]
[BlackFideId "14182360"]
[WhiteElo "2196"]
[BlackElo "2450"]
[Result "0-1"]
[Round "02"]
[TimeControl "180+2"]
[Date "2023.03.28"]
[WhiteClock "0:00:01"]
[BlackClock "0:00:09"]

1. e4 {[%clk 0:02:57]}  e5 {[%clk 0:02:58]} 2. Nf3 {[%clk 0:02:50]}  Nc6 {[%clk 0:02:57]} 3. Bc4 {[%clk 0:02:47]}  Nf6 {[%clk 0:02:56]} 4. d4 {[%clk 0:02:43]}  exd4 {[%clk 0:02:47]} 5. e5 {[%clk 0:02:43]}  d5 {[%clk 0:02:47]} 6. Bb5 {[%clk 0:02:42]}  Ne4 {[%clk 0:02:48]} 7. Nxd4 {[%clk 0:02:37]}  Bd7 {[%clk 0:02:48]} 8. Bxc6 {[%clk 0:02:38]}  bxc6 {[%clk 0:02:49]} 9. O-O {[%clk 0:02:37]}  Be7 {[%clk 0:02:47]} 10. f3 {[%clk 0:02:35]}  Nc5 {[%clk 0:02:46]} 11. Be3 {[%clk 0:02:34]}  O-O {[%clk 0:02:45]} 12. Nd2 {[%clk 0:02:33]}  Rb8 {[%clk 0:02:44]} 13. N2b3 {[%clk 0:02:30]}  Na4 {[%clk 0:02:40]} 14. Qc1 {[%clk 0:02:09]}  c5 {[%clk 0:02:39]} 15. Ne2 {[%clk 0:02:07]}  d4 {[%clk 0:02:33]} 16. Bf2 {[%clk 0:02:04]}  Bb5 {[%clk 0:02:06]} 17. Re1 {[%clk 0:02:02]}  Bxe2 {[%clk 0:01:55]} 18. Rxe2 {[%clk 0:01:58]}  Qd5 {[%clk 0:01:56]} 19. c3 {[%clk 0:01:32]}  d3 {[%clk 0:01:52]} 20. Rd2 {[%clk 0:01:25]}  c4 {[%clk 0:01:46]} 21. Nd4 {[%clk 0:01:24]}  Bg5 {[%clk 0:01:46]} 22. b3 {[%clk 0:01:15]}  Nc5 {[%clk 0:01:41]} 23. Nf5 {[%clk 0:00:58]}  Rfe8 {[%clk 0:01:09]} 24. Ne3 {[%clk 0:00:52]}  Qxe5 {[%clk 0:01:05]} 25. Nxc4 {[%clk 0:00:50]}  Bxd2 {[%clk 0:01:00]} 26. Qxd2 {[%clk 0:00:40]}  Qd5 {[%clk 0:01:00]} 27. Rd1 {[%clk 0:00:32]}  Rbd8 {[%clk 0:00:55]} 28. Re1 {[%clk 0:00:24]}  h6 {[%clk 0:00:48]} 29. Rxe8+ {[%clk 0:00:21]}  Rxe8 {[%clk 0:00:49]} 30. Ne3 {[%clk 0:00:19]}  Qd7 {[%clk 0:00:39]} 31. h3 {[%clk 0:00:15]}  a5 {[%clk 0:00:39]} 32. c4 {[%clk 0:00:14]}  Ne6 {[%clk 0:00:24]} 33. Nd5 {[%clk 0:00:13]}  c6 {[%clk 0:00:23]} 34. Nc3 {[%clk 0:00:09]}  Nd4 {[%clk 0:00:20]} 35. Kh2 {[%clk 0:00:04]}  Ne2 {[%clk 0:00:15]} 36. Ne4 {[%clk 0:00:02]}  f5 {[%clk 0:00:12]} 37. Ng3 {[%clk 0:00:02]}  Qd6 {[%clk 0:00:11]} 38. f4 {[%clk 0:00:01]}  Qxf4 {[%clk 0:00:10]} 39. Qxd3 {[%clk 0:00:01]}  Qxf2 {[%clk 0:00:10]} 40. Nxf5 {[%clk 0:00:01]}  Qg1# {[%clk 0:00:09]} 0-1


[Site "https://www.chess.com"]

[Event "Titled Tuesday Blitz March 28 Early 2023"]
[White "hsd2016"]
[Black "Bitoon, Richard"]
[BlackFideId "5201110"]
[WhiteElo "1959"]
[BlackElo "2374"]
[Result "1/2-1/2"]
[Round "02"]
[TimeControl "180+2"]
[Date "2023.03.28"]
[WhiteClock "0:00:05"]
[BlackClock "0:00:07"]

1. e4 {[%clk 0:03:00]}  e5 {[%clk 0:02:59]} 2. Nf3 {[%clk 0:03:01]}  Nc6 {[%clk 0:03:00]} 3. Bb5 {[%clk 0:03:01]}  a6 {[%clk 0:03:00]} 4. Bxc6 {[%clk 0:03:02]}  Nf6 {[%clk 0:03:01]} 5. O-O {[%clk 0:03:03]}  dxc6 {[%clk 0:03:00]} 6. Nxe5 {[%clk 0:03:03]}  Bc5 {[%clk 0:02:45]} 7. d4 {[%clk 0:03:02]}  Qxd4 {[%clk 0:02:35]} 8. Qxd4 {[%clk 0:03:00]}  Bxd4 {[%clk 0:02:35]} 9. Nf3 {[%clk 0:03:01]}  Bb6 {[%clk 0:02:35]} 10. e5 {[%clk 0:03:01]}  Nd5 {[%clk 0:02:33]} 11. c4 {[%clk 0:03:01]}  Nb4 {[%clk 0:02:33]} 12. Na3 {[%clk 0:02:57]}  Be6 {[%clk 0:02:32]} 13. Bd2 {[%clk 0:02:57]}  Nd3 {[%clk 0:02:32]} 14. Bc3 {[%clk 0:02:55]}  h6 {[%clk 0:02:28]} 15. b3 {[%clk 0:02:51]}  O-O-O {[%clk 0:02:28]} 16. Nc2 {[%clk 0:02:50]}  Bf5 {[%clk 0:02:21]} 17. Ncd4 {[%clk 0:02:43]}  Bh7 {[%clk 0:02:19]} 18. Rad1 {[%clk 0:02:25]}  Rhe8 {[%clk 0:02:18]} 19. Ne2 {[%clk 0:02:12]}  g5 {[%clk 0:01:58]} 20. h3 {[%clk 0:02:03]}  Be4 {[%clk 0:01:49]} 21. Ng3 {[%clk 0:01:50]}  Bg6 {[%clk 0:01:49]} 22. Rd2 {[%clk 0:01:36]}  Nf4 {[%clk 0:01:45]} 23. Rfd1 {[%clk 0:01:32]}  Rxd2 {[%clk 0:01:30]} 24. Rxd2 {[%clk 0:01:33]}  Rd8 {[%clk 0:01:30]} 25. Rxd8+ {[%clk 0:01:31]}  Kxd8 {[%clk 0:01:31]} 26. Bd2 {[%clk 0:01:11]}  Bb1 {[%clk 0:01:22]} 27. a3 {[%clk 0:00:27]}  Ba2 {[%clk 0:01:06]} 28. h4 {[%clk 0:00:26]}  Nd3 {[%clk 0:00:53]} 29. Ne4 {[%clk 0:00:14]}  g4 {[%clk 0:00:50]} 30. Nh2 {[%clk 0:00:11]}  h5 {[%clk 0:00:49]} 31. g3 {[%clk 0:00:05]}  Bxb3 {[%clk 0:00:48]} 32. Nf6 {[%clk 0:00:05]}  Bxf2+ {[%clk 0:00:41]} 33. Kg2 {[%clk 0:00:05]}  Bxc4 {[%clk 0:00:41]} 34. Nxh5 {[%clk 0:00:05]}  Bd5+ {[%clk 0:00:41]} 35. Kf1 {[%clk 0:00:06]}  Bc5 {[%clk 0:00:23]} 36. Nxg4 {[%clk 0:00:06]}  Bxa3 {[%clk 0:00:20]} 37. Ke2 {[%clk 0:00:06]}  Bc4 {[%clk 0:00:17]} 38. Ke3 {[%clk 0:00:02]}  Bc5+ {[%clk 0:00:17]} 39. Kf3 {[%clk 0:00:02]}  b5 {[%clk 0:00:14]} 40. Nhf6 {[%clk 0:00:03]}  Ke7 {[%clk 0:00:11]} 41. h5 {[%clk 0:00:03]}  Nxe5+ {[%clk 0:00:11]} 42. Nxe5 {[%clk 0:00:03]}  Kxf6 {[%clk 0:00:12]} 43. Nxc4 {[%clk 0:00:03]}  bxc4 {[%clk 0:00:13]} 44. Bc3+ {[%clk 0:00:03]}  Kg5 {[%clk 0:00:12]} 45. g4 {[%clk 0:00:03]}  Bd6 {[%clk 0:00:07]} 46. Bd2+ {[%clk 0:00:03]}  Kf6 {[%clk 0:00:08]} 47. Bc3+ {[%clk 0:00:03]}  Be5 {[%clk 0:00:06]} 48. Bd2 {[%clk 0:00:01]}  c3 {[%clk 0:00:06]} 49. Bc1 {[%clk 0:00:02]}  a5 {[%clk 0:00:05]} 50. g5+ {[%clk 0:00:02]}  Kg7 {[%clk 0:00:05]} 51. Ke4 {[%clk 0:00:03]}  f6 {[%clk 0:00:04]} 52. h6+ {[%clk 0:00:03]}  Kg6 {[%clk 0:00:04]} 53. gxf6 {[%clk 0:00:03]}  Bxf6 {[%clk 0:00:05]} 54. Kd3 {[%clk 0:00:03]}  a4 {[%clk 0:00:04]} 55. Kc4 {[%clk 0:00:03]}  Be7 {[%clk 0:00:04]} 56. Kxc3 {[%clk 0:00:03]}  a3 {[%clk 0:00:03]} 57. Kb3 {[%clk 0:00:03]}  Kh7 {[%clk 0:00:04]} 58. Bxa3 {[%clk 0:00:01]}  Bxa3 {[%clk 0:00:04]} 59. Kxa3 {[%clk 0:00:02]}  Kxh6 {[%clk 0:00:05]} 60. Kb4 {[%clk 0:00:03]}  Kg7 {[%clk 0:00:05]} 61. Kc5 {[%clk 0:00:03]}  Kf7 {[%clk 0:00:06]} 62. Kxc6 {[%clk 0:00:04]}  Ke8 {[%clk 0:00:07]} 63. Kxc7 {[%clk 0:00:05]} 1/2-1/2


[Site "https://www.chess.com"]

[Event "Titled Tuesday Blitz March 28 Early 2023"]
[White "Escanor89"]
[Black "Martinez Alcantara, Jose Eduardo"]
[BlackFideId "3805662"]
[WhiteElo "2533"]
[BlackElo "2712"]
[Result "0-1"]
[Round "02"]
[TimeControl "180+2"]
[Date "2023.03.28"]
[WhiteClock "0:00:08"]
[BlackClock "0:02:00"]

1. Nf3 {[%clk 0:03:00]}  Nf6 {[%clk 0:03:00]} 2. c4 {[%clk 0:03:00]}  e6 {[%clk 0:03:01]} 3. Nc3 {[%clk 0:03:00]}  d5 {[%clk 0:03:02]} 4. d4 {[%clk 0:02:58]}  a6 {[%clk 0:03:02]} 5. cxd5 {[%clk 0:02:58]}  exd5 {[%clk 0:03:03]} 6. Bg5 {[%clk 0:02:58]}  Be6 {[%clk 0:03:03]} 7. Qb3 {[%clk 0:02:55]}  Nbd7 {[%clk 0:03:02]} 8. e3 {[%clk 0:02:50]}  b5 {[%clk 0:03:01]} 9. Be2 {[%clk 0:02:40]}  c5 {[%clk 0:03:01]} 10. dxc5 {[%clk 0:02:40]}  d4 {[%clk 0:03:00]} 11. Bxf6 {[%clk 0:01:38]}  Nxf6 {[%clk 0:02:56]} 12. Qc2 {[%clk 0:01:33]}  dxc3 {[%clk 0:02:55]} 13. Qxc3 {[%clk 0:01:34]}  Ne4 {[%clk 0:02:52]} 14. Qc2 {[%clk 0:01:23]}  Nxc5 {[%clk 0:02:51]} 15. b4 {[%clk 0:01:17]}  Nd7 {[%clk 0:02:49]} 16. O-O {[%clk 0:01:08]}  Rc8 {[%clk 0:02:48]} 17. Qb2 {[%clk 0:01:08]}  Qf6 {[%clk 0:02:47]} 18. Nd4 {[%clk 0:01:07]}  Bd6 {[%clk 0:02:47]} 19. a4 {[%clk 0:01:03]}  O-O {[%clk 0:02:46]} 20. axb5 {[%clk 0:01:03]}  axb5 {[%clk 0:02:47]} 21. Bxb5 {[%clk 0:01:02]}  Ne5 {[%clk 0:02:45]} 22. Rab1 {[%clk 0:00:48]}  Bd5 {[%clk 0:02:35]} 23. Rfd1 {[%clk 0:00:42]}  Be4 {[%clk 0:02:33]} 24. Rbc1 {[%clk 0:00:37]}  Rb8 {[%clk 0:02:32]} 25. f3 {[%clk 0:00:28]}  Rxb5 {[%clk 0:02:30]} 26. fxe4 {[%clk 0:00:21]}  Rxb4 {[%clk 0:02:30]} 27. Qd2 {[%clk 0:00:19]}  g6 {[%clk 0:02:12]} 28. Kh1 {[%clk 0:00:09]}  Rbb8 {[%clk 0:02:09]} 29. Nc6 {[%clk 0:00:08]}  Nxc6 {[%clk 0:02:09]} 30. Rxc6 {[%clk 0:00:08]}  Bb4 {[%clk 0:02:00]} 0-1


[Site "https://www.chess.com"]

[Event "Titled Tuesday Blitz March 28 Early 2023"]
[White "Karthik, Venkataraman"]
[Black "Begunov, Konstantin"]
[WhiteFideId "25006479"]
[BlackFideId "4118510"]
[WhiteElo "2419"]
[BlackElo "2079"]
[Result "1-0"]
[Round "02"]
[TimeControl "180+2"]
[Date "2023.03.28"]
[WhiteClock "0:00:20"]
[BlackClock "0:00:04"]

1. d4 {[%clk 0:03:00]}  d5 {[%clk 0:02:57]} 2. c4 {[%clk 0:03:00]}  c6 {[%clk 0:02:57]} 3. Nf3 {[%clk 0:03:00]}  Nf6 {[%clk 0:02:57]} 4. Qc2 {[%clk 0:03:00]}  e6 {[%clk 0:02:55]} 5. Nbd2 {[%clk 0:02:59]}  Be7 {[%clk 0:02:55]} 6. g3 {[%clk 0:02:59]}  O-O {[%clk 0:02:55]} 7. Bg2 {[%clk 0:03:00]}  a6 {[%clk 0:02:54]} 8. O-O {[%clk 0:02:59]}  Nbd7 {[%clk 0:02:50]} 9. e4 {[%clk 0:02:59]}  dxe4 {[%clk 0:02:49]} 10. Nxe4 {[%clk 0:02:59]}  Nxe4 {[%clk 0:02:49]} 11. Qxe4 {[%clk 0:03:00]}  c5 {[%clk 0:02:47]} 12. Rd1 {[%clk 0:02:57]}  cxd4 {[%clk 0:02:39]} 13. Nxd4 {[%clk 0:02:55]}  Nc5 {[%clk 0:02:39]} 14. Qe2 {[%clk 0:02:54]}  Qe8 {[%clk 0:02:11]} 15. Bd2 {[%clk 0:02:41]}  Bf6 {[%clk 0:02:05]} 16. Bb4 {[%clk 0:02:41]}  Be7 {[%clk 0:01:57]} 17. Be1 {[%clk 0:02:37]}  Rb8 {[%clk 0:01:47]} 18. b4 {[%clk 0:02:30]}  Nd7 {[%clk 0:01:37]} 19. c5 {[%clk 0:02:29]}  Bf6 {[%clk 0:01:30]} 20. Rac1 {[%clk 0:02:29]}  Ne5 {[%clk 0:01:27]} 21. Bc3 {[%clk 0:02:02]}  Bd7 {[%clk 0:01:26]} 22. h4 {[%clk 0:01:45]}  Ba4 {[%clk 0:01:17]} 23. Rd2 {[%clk 0:01:36]}  Nc6 {[%clk 0:01:12]} 24. Nxc6 {[%clk 0:01:32]}  Bxc3 {[%clk 0:01:00]} 25. Nxb8 {[%clk 0:01:31]}  Bxd2 {[%clk 0:00:59]} 26. Qxd2 {[%clk 0:01:31]}  Qxb8 {[%clk 0:00:58]} 27. Rc4 {[%clk 0:01:28]}  Rd8 {[%clk 0:00:50]} 28. Rd4 {[%clk 0:01:28]}  Rxd4 {[%clk 0:00:49]} 29. Qxd4 {[%clk 0:01:29]}  Qc7 {[%clk 0:00:46]} 30. f4 {[%clk 0:01:29]}  h6 {[%clk 0:00:37]} 31. Kf2 {[%clk 0:01:29]}  Bc6 {[%clk 0:00:28]} 32. Bf3 {[%clk 0:00:57]}  Bxf3 {[%clk 0:00:19]} 33. Kxf3 {[%clk 0:00:58]}  Qc6+ {[%clk 0:00:20]} 34. Kf2 {[%clk 0:00:55]}  Qh1 {[%clk 0:00:19]} 35. Qd8+ {[%clk 0:00:55]}  Kh7 {[%clk 0:00:19]} 36. Qd3+ {[%clk 0:00:55]}  g6 {[%clk 0:00:18]} 37. a3 {[%clk 0:00:55]}  Qh2+ {[%clk 0:00:17]} 38. Kf3 {[%clk 0:00:55]}  Qh1+ {[%clk 0:00:18]} 39. Ke3 {[%clk 0:00:55]}  Qg2 {[%clk 0:00:17]} 40. Kd4 {[%clk 0:00:54]}  Qd5+ {[%clk 0:00:17]} 41. Kc3 {[%clk 0:00:51]}  Qa2 {[%clk 0:00:18]} 42. Kd4 {[%clk 0:00:51]}  Qd5+ {[%clk 0:00:18]} 43. Ke3 {[%clk 0:00:51]}  Qg2 {[%clk 0:00:18]} 44. Qe4 {[%clk 0:00:19]}  Qxg3+ {[%clk 0:00:18]} 45. Kd4 {[%clk 0:00:19]}  Qf2+ {[%clk 0:00:17]} 46. Ke5 {[%clk 0:00:20]}  Qb2+ {[%clk 0:00:12]} 47. Kd6 {[%clk 0:00:20]}  Qxa3 {[%clk 0:00:08]} 48. Ke7 {[%clk 0:00:21]}  a5 {[%clk 0:00:04]} 49. Kxf7 {[%clk 0:00:20]} 1-0


[Site "https://www.chess.com"]

[Event "Titled Tuesday Blitz March 28 Early 2023"]
[White "Van Osch, Mees"]
[Black "Wagner, Dennis"]
[WhiteFideId "1035967"]
[BlackFideId "24650684"]
[WhiteElo "2324"]
[BlackElo "2470"]
[Result "0-1"]
[Round "02"]
[TimeControl "180+2"]
[Date "2023.03.28"]
[WhiteClock "0:00:19"]
[BlackClock "0:01:50"]

1. e4 {[%clk 0:02:57]}  c5 {[%clk 0:03:00]} 2. Nf3 {[%clk 0:02:57]}  d6 {[%clk 0:03:00]} 3. d4 {[%clk 0:02:57]}  cxd4 {[%clk 0:03:01]} 4. Nxd4 {[%clk 0:02:57]}  Nf6 {[%clk 0:03:02]} 5. Nc3 {[%clk 0:02:57]}  a6 {[%clk 0:03:03]} 6. Nb3 {[%clk 0:02:57]}  e6 {[%clk 0:03:02]} 7. g4 {[%clk 0:02:57]}  b5 {[%clk 0:03:01]} 8. g5 {[%clk 0:02:56]}  b4 {[%clk 0:02:57]} 9. Na4 {[%clk 0:01:35]}  Nfd7 {[%clk 0:02:41]} 10. Be3 {[%clk 0:01:30]}  Bb7 {[%clk 0:02:40]} 11. Bg2 {[%clk 0:01:29]}  Bc6 {[%clk 0:02:38]} 12. a3 {[%clk 0:00:27]}  Bxa4 {[%clk 0:02:35]} 13. axb4 {[%clk 0:00:28]}  Bxb3 {[%clk 0:02:25]} 14. cxb3 {[%clk 0:00:29]}  Nc6 {[%clk 0:02:26]} 15. e5 {[%clk 0:00:26]}  d5 {[%clk 0:02:24]} 16. O-O {[%clk 0:00:26]}  Nxb4 {[%clk 0:02:20]} 17. f4 {[%clk 0:00:26]}  Bc5 {[%clk 0:02:09]} 18. Bxc5 {[%clk 0:00:23]}  Nxc5 {[%clk 0:02:10]} 19. Qd4 {[%clk 0:00:24]}  Qb6 {[%clk 0:02:10]} 20. Kh1 {[%clk 0:00:24]}  O-O {[%clk 0:01:57]} 21. f5 {[%clk 0:00:24]}  exf5 {[%clk 0:01:57]} 22. Rxf5 {[%clk 0:00:21]}  Nc2 {[%clk 0:01:54]} 23. Qxd5 {[%clk 0:00:19]}  Rad8 {[%clk 0:01:50]} 0-1


[Site "https://www.chess.com"]

[Event "Titled Tuesday Blitz March 28 Early 2023"]
[White "Valgmae, Toomas"]
[Black "Krysa, Leandro"]
[WhiteFideId "4502523"]
[BlackFideId "116807"]
[WhiteElo "2170"]
[BlackElo "2485"]
[Result "0-1"]
[Round "02"]
[TimeControl "180+2"]
[Date "2023.03.28"]
[WhiteClock "0:00:14"]
[BlackClock "0:00:06"]

1. d4 {[%clk 0:03:00]}  Nf6 {[%clk 0:02:59]} 2. c4 {[%clk 0:03:00]}  g6 {[%clk 0:02:59]} 3. Nc3 {[%clk 0:03:00]}  d5 {[%clk 0:02:59]} 4. cxd5 {[%clk 0:03:01]}  Nxd5 {[%clk 0:03:00]} 5. e4 {[%clk 0:03:02]}  Nxc3 {[%clk 0:03:00]} 6. bxc3 {[%clk 0:03:03]}  Bg7 {[%clk 0:03:00]} 7. Be3 {[%clk 0:03:04]}  c5 {[%clk 0:03:00]} 8. Qd2 {[%clk 0:03:04]}  Qa5 {[%clk 0:02:57]} 9. Rc1 {[%clk 0:03:03]}  O-O {[%clk 0:02:54]} 10. Nf3 {[%clk 0:03:03]}  Nd7 {[%clk 0:02:51]} 11. e5 {[%clk 0:02:35]}  cxd4 {[%clk 0:02:36]} 12. cxd4 {[%clk 0:02:36]}  Qxd2+ {[%clk 0:02:36]} 13. Kxd2 {[%clk 0:02:27]}  Nb6 {[%clk 0:02:26]} 14. Bd3 {[%clk 0:02:22]}  Nd5 {[%clk 0:02:22]} 15. Rc5 {[%clk 0:02:17]}  Be6 {[%clk 0:02:17]} 16. Bc4 {[%clk 0:02:14]}  Rfd8 {[%clk 0:02:05]} 17. Bb3 {[%clk 0:02:10]}  b6 {[%clk 0:01:59]} 18. Rcc1 {[%clk 0:02:02]}  Bg4 {[%clk 0:01:48]} 19. h3 {[%clk 0:01:54]}  Bxf3 {[%clk 0:01:42]} 20. gxf3 {[%clk 0:01:55]}  e6 {[%clk 0:01:34]} 21. Bg5 {[%clk 0:01:33]}  Rdc8 {[%clk 0:01:23]} 22. Bxd5 {[%clk 0:01:16]}  exd5 {[%clk 0:01:22]} 23. f4 {[%clk 0:01:15]}  Kf8 {[%clk 0:01:18]} 24. f5 {[%clk 0:01:09]}  gxf5 {[%clk 0:01:16]} 25. Ke3 {[%clk 0:01:09]}  Rc4 {[%clk 0:01:02]} 26. Rxc4 {[%clk 0:00:27]}  dxc4 {[%clk 0:01:02]} 27. Kf4 {[%clk 0:00:27]}  h6 {[%clk 0:01:01]} 28. Bh4 {[%clk 0:00:26]}  c3 {[%clk 0:01:00]} 29. Kxf5 {[%clk 0:00:19]}  b5 {[%clk 0:00:43]} 30. d5 {[%clk 0:00:16]}  Rc8 {[%clk 0:00:39]} 31. d6 {[%clk 0:00:14]}  Ke8 {[%clk 0:00:36]} 32. Rg1 {[%clk 0:00:14]}  c2 {[%clk 0:00:35]} 33. Rc1 {[%clk 0:00:12]}  Kd7 {[%clk 0:00:31]} 34. Ke4 {[%clk 0:00:11]}  Rc4+ {[%clk 0:00:30]} 35. Kd5 {[%clk 0:00:10]}  Rxh4 {[%clk 0:00:25]} 36. Rxc2 {[%clk 0:00:11]}  Rc4 {[%clk 0:00:25]} 37. Re2 {[%clk 0:00:11]}  a6 {[%clk 0:00:15]} 38. Re3 {[%clk 0:00:10]}  Rc2 {[%clk 0:00:10]} 39. Rg3 {[%clk 0:00:10]}  Rd2+ {[%clk 0:00:10]} 40. Ke4 {[%clk 0:00:09]}  Re2+ {[%clk 0:00:07]} 41. Kd3 {[%clk 0:00:09]}  Rxe5 {[%clk 0:00:06]} 42. Rxg7 {[%clk 0:00:09]}  Rf5 {[%clk 0:00:07]} 43. Ke3 {[%clk 0:00:08]}  Kxd6 {[%clk 0:00:07]} 44. Rh7 {[%clk 0:00:08]}  Rf6 {[%clk 0:00:07]} 45. f4 {[%clk 0:00:07]}  Kc5 {[%clk 0:00:07]} 46. Ke4 {[%clk 0:00:07]}  Kb4 {[%clk 0:00:05]} 47. f5 {[%clk 0:00:08]}  Ka3 {[%clk 0:00:03]} 48. Ke5 {[%clk 0:00:08]}  Rb6 {[%clk 0:00:03]} 49. Rxf7 {[%clk 0:00:09]}  Kxa2 {[%clk 0:00:04]} 50. Rf6 {[%clk 0:00:08]}  Rb8 {[%clk 0:00:02]} 51. Rxa6+ {[%clk 0:00:08]}  Kb3 {[%clk 0:00:03]} 52. f6 {[%clk 0:00:09]}  b4 {[%clk 0:00:03]} 53. Ke6 {[%clk 0:00:09]}  Kc2 {[%clk 0:00:03]} 54. f7 {[%clk 0:00:10]}  b3 {[%clk 0:00:04]} 55. Ke7 {[%clk 0:00:10]}  b2 {[%clk 0:00:04]} 56. f8=Q {[%clk 0:00:11]}  Rxf8 {[%clk 0:00:03]} 57. Kxf8 {[%clk 0:00:12]}  b1=Q {[%clk 0:00:04]} 58. Rxh6 {[%clk 0:00:13]}  Qb8+ {[%clk 0:00:03]} 59. Kg7 {[%clk 0:00:13]}  Qc7+ {[%clk 0:00:04]} 60. Kg6 {[%clk 0:00:13]}  Qd6+ {[%clk 0:00:04]} 61. Kh5 {[%clk 0:00:14]}  Qe5+ {[%clk 0:00:05]} 62. Kh4 {[%clk 0:00:14]}  Qf4+ {[%clk 0:00:05]} 63. Kh5 {[%clk 0:00:15]}  Qf5+ {[%clk 0:00:05]} 64. Kh4 {[%clk 0:00:15]}  Qf4+ {[%clk 0:00:05]} 65. Kh5 {[%clk 0:00:16]}  Kd3 {[%clk 0:00:06]} 66. h4 {[%clk 0:00:14]}  Qf5# {[%clk 0:00:06]} 0-1


[Site "https://www.chess.com"]

[Event "Titled Tuesday Blitz March 28 Early 2023"]
[White "Lewtak, Damian"]
[Black "drdaro"]
[WhiteFideId "1141724"]
[WhiteElo "2302"]
[BlackElo "2395"]
[Result "1-0"]
[Round "02"]
[TimeControl "180+2"]
[Date "2023.03.28"]
[WhiteClock "0:00:17"]
[BlackClock "0:00:03"]

1. e4 {[%clk 0:03:00]}  g6 {[%clk 0:02:58]} 2. Nf3 {[%clk 0:03:01]}  d6 {[%clk 0:02:58]} 3. c3 {[%clk 0:03:00]}  Bg7 {[%clk 0:02:57]} 4. g3 {[%clk 0:03:01]}  Bg4 {[%clk 0:02:57]} 5. Bg2 {[%clk 0:03:02]}  Nf6 {[%clk 0:02:57]} 6. O-O {[%clk 0:03:03]}  O-O {[%clk 0:02:57]} 7. h3 {[%clk 0:03:02]}  Bd7 {[%clk 0:02:55]} 8. Qe2 {[%clk 0:03:02]}  c5 {[%clk 0:02:56]} 9. d4 {[%clk 0:03:02]}  cxd4 {[%clk 0:02:54]} 10. cxd4 {[%clk 0:03:03]}  a6 {[%clk 0:02:54]} 11. Nc3 {[%clk 0:03:03]}  Nc6 {[%clk 0:02:52]} 12. e5 {[%clk 0:03:03]}  Ne8 {[%clk 0:02:50]} 13. a4 {[%clk 0:02:54]}  Qa5 {[%clk 0:02:38]} 14. Re1 {[%clk 0:02:43]}  e6 {[%clk 0:02:27]} 15. Bd2 {[%clk 0:02:38]}  Qd8 {[%clk 0:02:22]} 16. Bg5 {[%clk 0:02:23]}  Qa5 {[%clk 0:02:14]} 17. Qe3 {[%clk 0:02:14]}  Nb4 {[%clk 0:01:55]} 18. Rac1 {[%clk 0:02:01]}  Nc6 {[%clk 0:01:39]} 19. Qf4 {[%clk 0:01:37]}  dxe5 {[%clk 0:01:36]} 20. dxe5 {[%clk 0:01:22]}  Nc7 {[%clk 0:01:33]} 21. Bh6 {[%clk 0:01:17]}  Rad8 {[%clk 0:01:19]} 22. Qh4 {[%clk 0:01:12]}  Nb4 {[%clk 0:00:26]} 23. Ng5 {[%clk 0:01:07]}  Bxe5 {[%clk 0:00:04]} 24. Bxf8 {[%clk 0:00:59]}  Kxf8 {[%clk 0:00:05]} 25. Rxe5 {[%clk 0:00:20]}  Qxe5 {[%clk 0:00:05]} 26. Qxb4+ {[%clk 0:00:20]}  Kg7 {[%clk 0:00:03]} 27. Qe7 {[%clk 0:00:17]} 1-0


[Site "https://www.chess.com"]

[Event "Titled Tuesday Blitz March 28 Early 2023"]
[White "Staudenhocker43"]
[Black "EdmundPlayer"]
[WhiteElo "2555"]
[BlackElo "2205"]
[Result "1-0"]
[Round "02"]
[TimeControl "180+2"]
[Date "2023.03.28"]
[WhiteClock "0:00:52"]
[BlackClock "0:00:01"]

1. d4 {[%clk 0:02:57]}  Nf6 {[%clk 0:02:59]} 2. c4 {[%clk 0:02:56]}  g6 {[%clk 0:02:58]} 3. Nc3 {[%clk 0:02:55]}  d5 {[%clk 0:02:57]} 4. Nf3 {[%clk 0:02:55]}  Bg7 {[%clk 0:02:56]} 5. Qb3 {[%clk 0:02:56]}  dxc4 {[%clk 0:02:54]} 6. Qxc4 {[%clk 0:02:57]}  O-O {[%clk 0:02:52]} 7. e4 {[%clk 0:02:57]}  Nc6 {[%clk 0:02:42]} 8. Be2 {[%clk 0:02:57]}  Bg4 {[%clk 0:02:26]} 9. Be3 {[%clk 0:02:56]}  Nd7 {[%clk 0:02:20]} 10. Rd1 {[%clk 0:02:55]}  Nb6 {[%clk 0:02:10]} 11. Qc5 {[%clk 0:02:50]}  Qd6 {[%clk 0:02:08]} 12. Qxd6 {[%clk 0:02:39]}  cxd6 {[%clk 0:01:56]} 13. d5 {[%clk 0:02:34]}  Bxf3 {[%clk 0:01:51]} 14. gxf3 {[%clk 0:02:31]}  Ne5 {[%clk 0:01:51]} 15. Bxb6 {[%clk 0:02:24]}  axb6 {[%clk 0:01:48]} 16. Bb5 {[%clk 0:02:16]}  Rfc8 {[%clk 0:01:46]} 17. Ke2 {[%clk 0:02:15]}  Nc4 {[%clk 0:01:40]} 18. Bxc4 {[%clk 0:02:13]}  Rxc4 {[%clk 0:01:41]} 19. Kd3 {[%clk 0:02:13]}  Rac8 {[%clk 0:01:37]} 20. Rc1 {[%clk 0:02:11]}  b5 {[%clk 0:01:35]} 21. a3 {[%clk 0:02:08]}  b4 {[%clk 0:01:35]} 22. axb4 {[%clk 0:02:07]}  Rxb4 {[%clk 0:01:35]} 23. Rc2 {[%clk 0:02:06]}  Rd4+ {[%clk 0:01:31]} 24. Ke3 {[%clk 0:02:02]}  Rdc4 {[%clk 0:01:32]} 25. Rhc1 {[%clk 0:02:01]}  b5 {[%clk 0:01:32]} 26. Kd3 {[%clk 0:01:57]}  b4 {[%clk 0:01:30]} 27. Ne2 {[%clk 0:01:55]}  Rxc2 {[%clk 0:01:17]} 28. Rxc2 {[%clk 0:01:56]}  Ra8 {[%clk 0:00:59]} 29. Kc4 {[%clk 0:01:52]}  Ra2 {[%clk 0:00:41]} 30. Kb3 {[%clk 0:01:43]}  Ra1 {[%clk 0:00:41]} 31. Kxb4 {[%clk 0:01:43]}  Rh1 {[%clk 0:00:37]} 32. Kc4 {[%clk 0:01:39]}  Rxh2 {[%clk 0:00:34]} 33. Nf4 {[%clk 0:01:34]}  Rh1 {[%clk 0:00:25]} 34. b4 {[%clk 0:01:32]}  g5 {[%clk 0:00:20]} 35. Ne2 {[%clk 0:01:30]}  h5 {[%clk 0:00:18]} 36. Ng3 {[%clk 0:01:26]}  Rh3 {[%clk 0:00:15]} 37. b5 {[%clk 0:01:22]}  h4 {[%clk 0:00:14]} 38. b6 {[%clk 0:01:12]}  hxg3 {[%clk 0:00:14]} 39. b7 {[%clk 0:01:12]}  g2 {[%clk 0:00:13]} 40. b8=Q+ {[%clk 0:01:12]}  Kh7 {[%clk 0:00:13]} 41. Rc1 {[%clk 0:01:08]}  Be5 {[%clk 0:00:12]} 42. Rg1 {[%clk 0:01:05]}  Rh2 {[%clk 0:00:07]} 43. Qf8 {[%clk 0:00:57]}  Kg6 {[%clk 0:00:06]} 44. Qg8+ {[%clk 0:00:56]}  Bg7 {[%clk 0:00:06]} 45. Qc8 {[%clk 0:00:52]}  Be5 {[%clk 0:00:01]} 46. Qf5+ {[%clk 0:00:52]} 1-0


[Site "https://www.chess.com"]

[Event "Titled Tuesday Blitz March 28 Early 2023"]
[White "Harriott, Tyrell"]
[Black "Sjugirov, Sanan"]
[WhiteFideId "2086484"]
[BlackFideId "4189302"]
[WhiteElo "2107"]
[BlackElo "2569"]
[Result "0-1"]
[Round "02"]
[TimeControl "180+2"]
[Date "2023.03.28"]
[WhiteClock "0:02:28"]
[BlackClock "0:03:08"]

1. d4 {[%clk 0:03:00]}  Nf6 {[%clk 0:02:59]} 2. e3 {[%clk 0:03:01]}  e6 {[%clk 0:03:00]} 3. Bd3 {[%clk 0:03:01]}  d5 {[%clk 0:03:01]} 4. f4 {[%clk 0:03:01]}  c5 {[%clk 0:03:02]} 5. c3 {[%clk 0:03:01]}  Nc6 {[%clk 0:03:03]} 6. Nf3 {[%clk 0:03:01]}  c4 {[%clk 0:03:04]} 7. Bc2 {[%clk 0:03:01]}  Ne4 {[%clk 0:03:05]} 8. O-O {[%clk 0:02:59]}  f5 {[%clk 0:03:05]} 9. Nbd2 {[%clk 0:02:57]}  Bd6 {[%clk 0:03:06]} 10. Nxe4 {[%clk 0:02:57]}  fxe4 {[%clk 0:03:06]} 11. Ne5 {[%clk 0:02:57]}  O-O {[%clk 0:03:07]} 12. b3 {[%clk 0:02:53]}  cxb3 {[%clk 0:03:06]} 13. axb3 {[%clk 0:02:49]}  Bd7 {[%clk 0:03:07]} 14. c4 {[%clk 0:02:49]}  Nb4 {[%clk 0:03:07]} 15. c5 {[%clk 0:02:48]}  Bxe5 {[%clk 0:03:06]} 16. fxe5 {[%clk 0:02:44]}  Rxf1+ {[%clk 0:03:06]} 17. Kxf1 {[%clk 0:02:44]}  Qh4 {[%clk 0:03:06]} 18. Bd2 {[%clk 0:02:29]}  Rf8+ {[%clk 0:03:07]} 19. Kg1 {[%clk 0:02:29]}  Qf2+ {[%clk 0:03:07]} 20. Kh1 {[%clk 0:02:28]}  Nxc2 {[%clk 0:03:08]} 0-1


[Site "https://www.chess.com"]